{"text_format":"1","workbook":"xlsx","n_sheets":4,"sheets":["Премьер-лига","Шахматка","Sheet2","Sheet1"],"not_rendered":{"charts":0,"images":0,"macros":1,"external_links":1,"defined_names":1,"comments":0,"pivot_tables":0},"unopened":[],"bounds":{"document_bytes":16777216,"sheet_cells":100000,"rows_first":2000,"rows_last":500,"rows_between":2000,"halvings":0,"cell_chars":16384,"cell_head_chars":4096},"cells_cut":0,"cells_raw":0,"read":"whole","date_system":"1900"}

{"sheet":"Премьер-лига","index":0,"n_rows":27,"n_cols":19,"rows_kept":27,"cut":false,"hidden":false,"merged":[[0,2,0,5],[14,2,16,2],[14,15,16,15]]}
["Arsenal"]
["Aston Villa",null,8,0,0,16,null,null,null,null,null,null,null,null,null,"Liverpool",0,0,"Tottenham Hotspur"]
["Blackburn Rovers",null,19,3,3,10,null,null,null,null,null,null,null,null,null,"Chelsea",3,3,"Manchester United"]
["Bolton Wanderers",null,12,2,1,2,null,null,null,null,null,null,null,null,null,"Newcastle United",2,1,"Aston Villa"]
["West Bromwich Albion",null,9,3,0,18,null,null,null,null,null,null,null,null,null,"Manchester City",3,0,"Fulham"]
["Wolverhampton Wanderers",null,17,1,1,20,null,null,null,null,null,null,null,null,null,"Wigan Athletic",1,1,"Everton"]
["Queens Park Rangers",null,11,2,0,4,null,null,null,null,null,null,null,null,null,"Norwich City",2,0,"Bolton Wanderers"]
["Liverpool",null,7,1,2,6,null,null,null,null,null,null,null,null,null,"Queens Park Rangers",1,2,"Wolverhampton Wanderers"]
["Manchester City",null,14,0,1,13,null,null,null,null,null,null,null,null,null,"Stoke City",0,1,"Sunderland"]
["Manchester United",null,5,1,2,15,null,null,null,null,null,null,null,null,null,"West Bromwich Albion",1,2,"Swansea City"]
["Norwich City",null,1,7,1,3,null,null,null,null,null,null,null,null,null,"Arsenal",7,1,"Blackburn Rovers"]
["Newcastle United"]
["Sunderland"]
["Stoke City"]
["Swansea City",null,"Было",null,null,null,null,null,null,null,null,null,null,null,null,"Стало",null,"Ниже вид который имеют данные в массиве."]
["Tottenham Hotspur",null,null,null,null,null,null,null,null,null,null,null,null,null,null,null,null,"То есть не просто, как вверху, обычный текст и числа,"]
["Wigan Athletic",null,null,null,null,null,null,null,null,null,null,null,null,null,null,null,null,"а формулы в каждой ячейке."]
["Fulham",null,null,null,null,null,null,null,null,null,null,null,null,null,null,{"$f":"Sheet2!A2","v":"Liverpool"},{"$f":"Sheet2!B2","v":"0"},{"$f":"Sheet2!C2","v":"0"},{"$f":"Sheet2!D2","v":"Tottenham Hotspur"}]
["Chelsea",null,null,null,null,null,null,null,null,null,null,null,null,null,null,{"$f":"Sheet2!A3","v":"Chelsea"},{"$f":"Sheet2!B3","v":"3"},{"$f":"Sheet2!C3","v":"3"},{"$f":"Sheet2!D3","v":"Manchester United"}]
["Everton",null,null,null,null,null,null,null,null,null,null,null,null,null,null,{"$f":"Sheet2!A4","v":"Newcastle United"},{"$f":"Sheet2!B4","v":"2"},{"$f":"Sheet2!C4","v":"1"},{"$f":"Sheet2!D4","v":"Aston Villa"}]
[null,null,null,null,null,null,null,null,null,null,null,null,null,null,null,{"$f":"Sheet2!A5","v":"Manchester City"},{"$f":"Sheet2!B5","v":"3"},{"$f":"Sheet2!C5","v":"0"},{"$f":"Sheet2!D5","v":"Fulham"}]
[null,null,null,null,null,null,null,null,null,null,null,null,null,null,null,{"$f":"Sheet2!A6","v":"Wigan Athletic"},{"$f":"Sheet2!B6","v":"1"},{"$f":"Sheet2!C6","v":"1"},{"$f":"Sheet2!D6","v":"Everton"}]
[null,null,null,null,null,null,null,null,null,null,null,null,null,null,null,{"$f":"Sheet2!A7","v":"Norwich City"},{"$f":"Sheet2!B7","v":"2"},{"$f":"Sheet2!C7","v":"0"},{"$f":"Sheet2!D7","v":"Bolton Wanderers"}]
[null,null,null,null,null,null,null,null,null,null,null,null,null,null,null,{"$f":"Sheet2!A8","v":"Queens Park Rangers"},{"$f":"Sheet2!B8","v":"1"},{"$f":"Sheet2!C8","v":"2"},{"$f":"Sheet2!D8","v":"Wolverhampton Wanderers"}]
[null,null,null,null,null,null,null,null,null,null,null,null,null,null,null,{"$f":"Sheet2!A9","v":"Stoke City"},{"$f":"Sheet2!B9","v":"0"},{"$f":"Sheet2!C9","v":"1"},{"$f":"Sheet2!D9","v":"Sunderland"}]
[null,null,null,null,null,null,null,null,null,null,null,null,null,null,null,{"$f":"Sheet2!A10","v":"West Bromwich Albion"},{"$f":"Sheet2!B10","v":"1"},{"$f":"Sheet2!C10","v":"2"},{"$f":"Sheet2!D10","v":"Swansea City"}]
[null,null,null,null,null,null,null,null,null,null,null,null,null,null,null,{"$f":"Sheet2!A11","v":"Arsenal"},{"$f":"Sheet2!B11","v":"7"},{"$f":"Sheet2!C11","v":"1"},{"$f":"Sheet2!D11","v":"Blackburn Rovers"}]

{"sheet":"Шахматка","index":1,"n_rows":21,"n_cols":118,"rows_kept":21,"cut":false,"hidden":false,"merged":[[0,23,0,24],[0,37,0,38],[0,33,0,34],[0,35,0,36],[0,21,0,22],[0,11,0,12],[0,13,0,14],[0,15,0,16],[0,17,0,18],[0,19,0,20],[0,1,0,2],[0,3,0,4],[0,5,0,6],[0,7,0,8],[0,9,0,10],[0,25,0,26],[0,27,0,28],[0,29,0,30],[0,31,0,32],[0,39,0,40]]}
[{"$f":"(SUM(B34:B53)+SUM(G34:G53))/20","v":0},{"$f":"A2","v":"Arsenal"},null,{"$f":"A3","v":"Aston Villa"},null,{"$f":"A4","v":"Blackburn Rovers"},null,{"$f":"A5","v":"Bolton Wanderers"},null,{"$f":"A6","v":"West Bromwich Albion"},null,{"$f":"A7","v":"Wolverhampton Wanderers"},null,{"$f":"A8","v":"Queens Park Rangers"},null,{"$f":"A9","v":"Liverpool"},null,{"$f":"A10","v":"Manchester City"},null,{"$f":"A11","v":"Manchester United"},null,{"$f":"A12","v":"Norwich City"},null,{"$f":"A13","v":"Newcastle United"},null,{"$f":"A14","v":"Sunderland"},null,{"$f":"A15","v":"Stoke City"},null,{"$f":"A16","v":"Swansea City"},null,{"$f":"A17","v":"Tottenham Hotspur"},null,{"$f":"A18","v":"Wigan Athletic"},null,{"$f":"A19","v":"Fulham"},null,{"$f":"A20","v":"Chelsea"},null,{"$f":"A21","v":"Everton"},null,null,"з","п","з","п","з","п","з","п","з","п","з","п","з","п","з","п","з","п","з","п","з","п","з","п","з","п","з","п","з","п","з","п","з","п","з","п","з","п","з","п","з","п","з","п","з","п","з","п","з","п","з","п","з","п","з","п","з","п","з","п","з","п","з","п","з","п","з","п","з","п","з","п","з","п","з","п"]
[{"$f":"'[1]Премьер-лига'!C3","v":"Arsenal"}]
[{"$f":"'[1]Премьер-лига'!C4","v":"Aston Villa"}]
[{"$f":"'[1]Премьер-лига'!C5","v":"Blackburn Rovers"}]
[{"$f":"'[1]Премьер-лига'!C6","v":"Bolton Wanderers"}]
[{"$f":"'[1]Премьер-лига'!C7","v":"West Bromwich Albion"}]
[{"$f":"'[1]Премьер-лига'!C8","v":"Wolverhampton Wanderers"}]
[{"$f":"'[1]Премьер-лига'!C9","v":"Queens Park Rangers"}]
[{"$f":"'[1]Премьер-лига'!C10","v":"Liverpool"}]
[{"$f":"'[1]Премьер-лига'!C11","v":"Manchester City"}]
[{"$f":"'[1]Премьер-лига'!C12","v":"Manchester United"}]
[{"$f":"'[1]Премьер-лига'!C13","v":"Norwich City"}]
[{"$f":"'[1]Премьер-лига'!C14","v":"Newcastle United"}]
[{"$f":"'[1]Премьер-лига'!C15","v":"Sunderland"}]
[{"$f":"'[1]Премьер-лига'!C16","v":"Stoke City"}]
[{"$f":"'[1]Премьер-лига'!C17","v":"Swansea City"}]
[{"$f":"'[1]Премьер-лига'!C18","v":"Tottenham Hotspur"}]
[{"$f":"'[1]Премьер-лига'!C19","v":"Wigan Athletic"}]
[{"$f":"'[1]Премьер-лига'!C20","v":"Fulham"}]
[{"$f":"'[1]Премьер-лига'!C21","v":"Chelsea"}]
[{"$f":"'[1]Премьер-лига'!C22","v":"Everton"}]

{"sheet":"Sheet2","index":2,"n_rows":47,"n_cols":9,"rows_kept":47,"cut":false,"hidden":false,"merged":[]}
["home team","-","-","away team"]
[{"$f":"IF(A1=0,0,INDEX([1]Sheet1!D$1:D$65536,MATCH($F$5,[1]Sheet1!$C$1:$C$65536,)+ROW(A1)-1))","v":"Liverpool"},{"$f":"IF(B1=0,0,INDEX([1]Sheet1!E$1:E$65536,MATCH($F$5,[1]Sheet1!$C$1:$C$65536,)+ROW(B1)-1))","v":"0"},{"$f":"IF(C1=0,0,INDEX([1]Sheet1!F$1:F$65536,MATCH($F$5,[1]Sheet1!$C$1:$C$65536,)+ROW(C1)-1))","v":"0"},{"$f":"IF(D1=0,0,INDEX([1]Sheet1!G$1:G$65536,MATCH($F$5,[1]Sheet1!$C$1:$C$65536,)+ROW(D1)-1))","v":"Tottenham Hotspur"}]
[{"$f":"IF(A2=0,0,INDEX([1]Sheet1!D$1:D$65536,MATCH($F$5,[1]Sheet1!$C$1:$C$65536,)+ROW(A2)-1))","v":"Chelsea"},{"$f":"IF(B2=0,0,INDEX([1]Sheet1!E$1:E$65536,MATCH($F$5,[1]Sheet1!$C$1:$C$65536,)+ROW(B2)-1))","v":"3"},{"$f":"IF(C2=0,0,INDEX([1]Sheet1!F$1:F$65536,MATCH($F$5,[1]Sheet1!$C$1:$C$65536,)+ROW(C2)-1))","v":"3"},{"$f":"IF(D2=0,0,INDEX([1]Sheet1!G$1:G$65536,MATCH($F$5,[1]Sheet1!$C$1:$C$65536,)+ROW(D2)-1))","v":"Manchester United"},null,null,null,null,1]
[{"$f":"IF(A3=0,0,INDEX([1]Sheet1!D$1:D$65536,MATCH($F$5,[1]Sheet1!$C$1:$C$65536,)+ROW(A3)-1))","v":"Newcastle United"},{"$f":"IF(B3=0,0,INDEX([1]Sheet1!E$1:E$65536,MATCH($F$5,[1]Sheet1!$C$1:$C$65536,)+ROW(B3)-1))","v":"2"},{"$f":"IF(C3=0,0,INDEX([1]Sheet1!F$1:F$65536,MATCH($F$5,[1]Sheet1!$C$1:$C$65536,)+ROW(C3)-1))","v":"1"},{"$f":"IF(D3=0,0,INDEX([1]Sheet1!G$1:G$65536,MATCH($F$5,[1]Sheet1!$C$1:$C$65536,)+ROW(D3)-1))","v":"Aston Villa"},null,"round",null,null,2]
[{"$f":"IF(A4=0,0,INDEX([1]Sheet1!D$1:D$65536,MATCH($F$5,[1]Sheet1!$C$1:$C$65536,)+ROW(A4)-1))","v":"Manchester City"},{"$f":"IF(B4=0,0,INDEX([1]Sheet1!E$1:E$65536,MATCH($F$5,[1]Sheet1!$C$1:$C$65536,)+ROW(B4)-1))","v":"3"},{"$f":"IF(C4=0,0,INDEX([1]Sheet1!F$1:F$65536,MATCH($F$5,[1]Sheet1!$C$1:$C$65536,)+ROW(C4)-1))","v":"0"},{"$f":"IF(D4=0,0,INDEX([1]Sheet1!G$1:G$65536,MATCH($F$5,[1]Sheet1!$C$1:$C$65536,)+ROW(D4)-1))","v":"Fulham"},null,{"$f":"'[1]Премьер-лига'!Y2","v":25},null,null,3]
[{"$f":"IF(A5=0,0,INDEX([1]Sheet1!D$1:D$65536,MATCH($F$5,[1]Sheet1!$C$1:$C$65536,)+ROW(A5)-1))","v":"Wigan Athletic"},{"$f":"IF(B5=0,0,INDEX([1]Sheet1!E$1:E$65536,MATCH($F$5,[1]Sheet1!$C$1:$C$65536,)+ROW(B5)-1))","v":"1"},{"$f":"IF(C5=0,0,INDEX([1]Sheet1!F$1:F$65536,MATCH($F$5,[1]Sheet1!$C$1:$C$65536,)+ROW(C5)-1))","v":"1"},{"$f":"IF(D5=0,0,INDEX([1]Sheet1!G$1:G$65536,MATCH($F$5,[1]Sheet1!$C$1:$C$65536,)+ROW(D5)-1))","v":"Everton"},null,null,null,null,4]
[{"$f":"IF(A6=0,0,INDEX([1]Sheet1!D$1:D$65536,MATCH($F$5,[1]Sheet1!$C$1:$C$65536,)+ROW(A6)-1))","v":"Norwich City"},{"$f":"IF(B6=0,0,INDEX([1]Sheet1!E$1:E$65536,MATCH($F$5,[1]Sheet1!$C$1:$C$65536,)+ROW(B6)-1))","v":"2"},{"$f":"IF(C6=0,0,INDEX([1]Sheet1!F$1:F$65536,MATCH($F$5,[1]Sheet1!$C$1:$C$65536,)+ROW(C6)-1))","v":"0"},{"$f":"IF(D6=0,0,INDEX([1]Sheet1!G$1:G$65536,MATCH($F$5,[1]Sheet1!$C$1:$C$65536,)+ROW(D6)-1))","v":"Bolton Wanderers"},null,null,null,null,5]
[{"$f":"IF(A7=0,0,INDEX([1]Sheet1!D$1:D$65536,MATCH($F$5,[1]Sheet1!$C$1:$C$65536,)+ROW(A7)-1))","v":"Queens Park Rangers"},{"$f":"IF(B7=0,0,INDEX([1]Sheet1!E$1:E$65536,MATCH($F$5,[1]Sheet1!$C$1:$C$65536,)+ROW(B7)-1))","v":"1"},{"$f":"IF(C7=0,0,INDEX([1]Sheet1!F$1:F$65536,MATCH($F$5,[1]Sheet1!$C$1:$C$65536,)+ROW(C7)-1))","v":"2"},{"$f":"IF(D7=0,0,INDEX([1]Sheet1!G$1:G$65536,MATCH($F$5,[1]Sheet1!$C$1:$C$65536,)+ROW(D7)-1))","v":"Wolverhampton Wanderers"},null,null,null,null,6]
[{"$f":"IF(A8=0,0,INDEX([1]Sheet1!D$1:D$65536,MATCH($F$5,[1]Sheet1!$C$1:$C$65536,)+ROW(A8)-1))","v":"Stoke City"},{"$f":"IF(B8=0,0,INDEX([1]Sheet1!E$1:E$65536,MATCH($F$5,[1]Sheet1!$C$1:$C$65536,)+ROW(B8)-1))","v":"0"},{"$f":"IF(C8=0,0,INDEX([1]Sheet1!F$1:F$65536,MATCH($F$5,[1]Sheet1!$C$1:$C$65536,)+ROW(C8)-1))","v":"1"},{"$f":"IF(D8=0,0,INDEX([1]Sheet1!G$1:G$65536,MATCH($F$5,[1]Sheet1!$C$1:$C$65536,)+ROW(D8)-1))","v":"Sunderland"},null,null,null,null,7]
[{"$f":"IF(A9=0,0,INDEX([1]Sheet1!D$1:D$65536,MATCH($F$5,[1]Sheet1!$C$1:$C$65536,)+ROW(A9)-1))","v":"West Bromwich Albion"},{"$f":"IF(B9=0,0,INDEX([1]Sheet1!E$1:E$65536,MATCH($F$5,[1]Sheet1!$C$1:$C$65536,)+ROW(B9)-1))","v":"1"},{"$f":"IF(C9=0,0,INDEX([1]Sheet1!F$1:F$65536,MATCH($F$5,[1]Sheet1!$C$1:$C$65536,)+ROW(C9)-1))","v":"2"},{"$f":"IF(D9=0,0,INDEX([1]Sheet1!G$1:G$65536,MATCH($F$5,[1]Sheet1!$C$1:$C$65536,)+ROW(D9)-1))","v":"Swansea City"},null,null,null,null,8]
[{"$f":"IF(A10=0,0,INDEX([1]Sheet1!D$1:D$65536,MATCH($F$5,[1]Sheet1!$C$1:$C$65536,)+ROW(A10)-1))","v":"Arsenal"},{"$f":"IF(B10=0,0,INDEX([1]Sheet1!E$1:E$65536,MATCH($F$5,[1]Sheet1!$C$1:$C$65536,)+ROW(B10)-1))","v":"7"},{"$f":"IF(C10=0,0,INDEX([1]Sheet1!F$1:F$65536,MATCH($F$5,[1]Sheet1!$C$1:$C$65536,)+ROW(C10)-1))","v":"1"},{"$f":"IF(D10=0,0,INDEX([1]Sheet1!G$1:G$65536,MATCH($F$5,[1]Sheet1!$C$1:$C$65536,)+ROW(D10)-1))","v":"Blackburn Rovers"},null,null,null,null,9]
[{"$f":"IF(A11=0,0,INDEX([1]Sheet1!D$1:D$65536,MATCH($F$5,[1]Sheet1!$C$1:$C$65536,)+ROW(A11)-1))","v":0},{"$f":"IF(B11=0,0,INDEX([1]Sheet1!E$1:E$65536,MATCH($F$5,[1]Sheet1!$C$1:$C$65536,)+ROW(B11)-1))","v":0},{"$f":"IF(C11=0,0,INDEX([1]Sheet1!F$1:F$65536,MATCH($F$5,[1]Sheet1!$C$1:$C$65536,)+ROW(C11)-1))","v":0},{"$f":"IF(D11=0,0,INDEX([1]Sheet1!G$1:G$65536,MATCH($F$5,[1]Sheet1!$C$1:$C$65536,)+ROW(D11)-1))","v":0},null,null,null,null,10]
[{"$f":"IF(A12=0,0,INDEX([1]Sheet1!D$1:D$65536,MATCH($F$5,[1]Sheet1!$C$1:$C$65536,)+ROW(A12)-1))","v":0},{"$f":"IF(B12=0,0,INDEX([1]Sheet1!E$1:E$65536,MATCH($F$5,[1]Sheet1!$C$1:$C$65536,)+ROW(B12)-1))","v":0},{"$f":"IF(C12=0,0,INDEX([1]Sheet1!F$1:F$65536,MATCH($F$5,[1]Sheet1!$C$1:$C$65536,)+ROW(C12)-1))","v":0},{"$f":"IF(D12=0,0,INDEX([1]Sheet1!G$1:G$65536,MATCH($F$5,[1]Sheet1!$C$1:$C$65536,)+ROW(D12)-1))","v":0},null,null,null,null,11]
[{"$f":"IF(A13=0,0,INDEX([1]Sheet1!D$1:D$65536,MATCH($F$5,[1]Sheet1!$C$1:$C$65536,)+ROW(A13)-1))","v":0},{"$f":"IF(B13=0,0,INDEX([1]Sheet1!E$1:E$65536,MATCH($F$5,[1]Sheet1!$C$1:$C$65536,)+ROW(B13)-1))","v":0},{"$f":"IF(C13=0,0,INDEX([1]Sheet1!F$1:F$65536,MATCH($F$5,[1]Sheet1!$C$1:$C$65536,)+ROW(C13)-1))","v":0},{"$f":"IF(D13=0,0,INDEX([1]Sheet1!G$1:G$65536,MATCH($F$5,[1]Sheet1!$C$1:$C$65536,)+ROW(D13)-1))","v":0},null,null,null,null,12]
[{"$f":"IF(A14=0,0,INDEX([1]Sheet1!D$1:D$65536,MATCH($F$5,[1]Sheet1!$C$1:$C$65536,)+ROW(A14)-1))","v":0},{"$f":"IF(B14=0,0,INDEX([1]Sheet1!E$1:E$65536,MATCH($F$5,[1]Sheet1!$C$1:$C$65536,)+ROW(B14)-1))","v":0},{"$f":"IF(C14=0,0,INDEX([1]Sheet1!F$1:F$65536,MATCH($F$5,[1]Sheet1!$C$1:$C$65536,)+ROW(C14)-1))","v":0},{"$f":"IF(D14=0,0,INDEX([1]Sheet1!G$1:G$65536,MATCH($F$5,[1]Sheet1!$C$1:$C$65536,)+ROW(D14)-1))","v":0},null,null,null,null,13]
[{"$f":"IF(A15=0,0,INDEX([1]Sheet1!D$1:D$65536,MATCH($F$5,[1]Sheet1!$C$1:$C$65536,)+ROW(A15)-1))","v":0},{"$f":"IF(B15=0,0,INDEX([1]Sheet1!E$1:E$65536,MATCH($F$5,[1]Sheet1!$C$1:$C$65536,)+ROW(B15)-1))","v":0},{"$f":"IF(C15=0,0,INDEX([1]Sheet1!F$1:F$65536,MATCH($F$5,[1]Sheet1!$C$1:$C$65536,)+ROW(C15)-1))","v":0},{"$f":"IF(D15=0,0,INDEX([1]Sheet1!G$1:G$65536,MATCH($F$5,[1]Sheet1!$C$1:$C$65536,)+ROW(D15)-1))","v":0},null,null,null,null,14]
[{"$f":"IF(A16=0,0,INDEX([1]Sheet1!D$1:D$65536,MATCH($F$5,[1]Sheet1!$C$1:$C$65536,)+ROW(A16)-1))","v":0},{"$f":"IF(B16=0,0,INDEX([1]Sheet1!E$1:E$65536,MATCH($F$5,[1]Sheet1!$C$1:$C$65536,)+ROW(B16)-1))","v":0},{"$f":"IF(C16=0,0,INDEX([1]Sheet1!F$1:F$65536,MATCH($F$5,[1]Sheet1!$C$1:$C$65536,)+ROW(C16)-1))","v":0},{"$f":"IF(D16=0,0,INDEX([1]Sheet1!G$1:G$65536,MATCH($F$5,[1]Sheet1!$C$1:$C$65536,)+ROW(D16)-1))","v":0},null,null,null,null,15]
[{"$f":"IF(A17=0,0,INDEX([1]Sheet1!D$1:D$65536,MATCH($F$5,[1]Sheet1!$C$1:$C$65536,)+ROW(A17)-1))","v":0},{"$f":"IF(B17=0,0,INDEX([1]Sheet1!E$1:E$65536,MATCH($F$5,[1]Sheet1!$C$1:$C$65536,)+ROW(B17)-1))","v":0},{"$f":"IF(C17=0,0,INDEX([1]Sheet1!F$1:F$65536,MATCH($F$5,[1]Sheet1!$C$1:$C$65536,)+ROW(C17)-1))","v":0},{"$f":"IF(D17=0,0,INDEX([1]Sheet1!G$1:G$65536,MATCH($F$5,[1]Sheet1!$C$1:$C$65536,)+ROW(D17)-1))","v":0},null,null,null,null,16]
[{"$f":"IF(A18=0,0,INDEX([1]Sheet1!D$1:D$65536,MATCH($F$5,[1]Sheet1!$C$1:$C$65536,)+ROW(A18)-1))","v":0},{"$f":"IF(B18=0,0,INDEX([1]Sheet1!E$1:E$65536,MATCH($F$5,[1]Sheet1!$C$1:$C$65536,)+ROW(B18)-1))","v":0},{"$f":"IF(C18=0,0,INDEX([1]Sheet1!F$1:F$65536,MATCH($F$5,[1]Sheet1!$C$1:$C$65536,)+ROW(C18)-1))","v":0},{"$f":"IF(D18=0,0,INDEX([1]Sheet1!G$1:G$65536,MATCH($F$5,[1]Sheet1!$C$1:$C$65536,)+ROW(D18)-1))","v":0},null,null,null,null,17]
[{"$f":"IF(A19=0,0,INDEX([1]Sheet1!D$1:D$65536,MATCH($F$5,[1]Sheet1!$C$1:$C$65536,)+ROW(A19)-1))","v":0},{"$f":"IF(B19=0,0,INDEX([1]Sheet1!E$1:E$65536,MATCH($F$5,[1]Sheet1!$C$1:$C$65536,)+ROW(B19)-1))","v":0},{"$f":"IF(C19=0,0,INDEX([1]Sheet1!F$1:F$65536,MATCH($F$5,[1]Sheet1!$C$1:$C$65536,)+ROW(C19)-1))","v":0},{"$f":"IF(D19=0,0,INDEX([1]Sheet1!G$1:G$65536,MATCH($F$5,[1]Sheet1!$C$1:$C$65536,)+ROW(D19)-1))","v":0},null,null,null,null,18]
[null,null,null,null,null,null,null,null,19]
[null,null,null,null,null,null,null,null,20]
[null,null,null,null,null,null,null,null,21]
[null,null,null,null,null,null,null,null,22]
[null,null,null,null,null,null,null,null,23]
[null,null,null,null,null,null,null,null,24]
[null,null,null,null,null,null,null,null,25]
[null,null,null,null,null,null,null,null,26]
[null,null,null,null,null,null,null,null,27]
[null,null,null,null,null,null,null,null,28]
[null,null,null,null,null,null,null,null,29]
[null,null,null,null,null,null,null,null,30]
[null,null,null,null,null,null,null,null,31]
[null,null,null,null,null,null,null,null,32]
[null,null,null,null,null,null,null,null,33]
[null,null,null,null,null,null,null,null,34]
[null,null,null,null,null,null,null,null,35]
[null,null,null,null,null,null,null,null,36]
[null,null,null,null,null,null,null,null,37]
[null,null,null,null,null,null,null,null,38]
[null,null,null,null,null,null,null,null,39]
[null,null,null,null,null,null,null,null,40]
[null,null,null,null,null,null,null,null,41]
[null,null,null,null,null,null,null,null,42]
[null,null,null,null,null,null,null,null,43]
[null,null,null,null,null,null,null,null,44]
[null,null,null,null,null,null,null,null,45]

{"sheet":"Sheet1","index":3,"n_rows":422,"n_cols":7,"rows_kept":422,"cut":false,"hidden":false,"merged":[]}
[null,"date","round","home team",null,null,"away team"]
[null,"13 May",42,"West Bromwich Albion","2","3","Arsenal"]
[null,"13 May",42,"Manchester City","3","2","Queens Park Rangers"]
[null,"13 May",42,"Wigan Athletic","3","2","Wolverhampton Wanderers"]
[null,"13 May",42,"Norwich City","2","0","Aston Villa"]
[null,"13 May",42,"Stoke City","2","2","Bolton Wanderers"]
[null,"13 May",42,"Sunderland","0","1","Manchester United"]
[null,"13 May",42,"Swansea City","1","0","Liverpool"]
[null,"13 May",42,"Chelsea","2","1","Blackburn Rovers"]
[null,"13 May",42,"Tottenham Hotspur","2","0","Fulham"]
[null,"13 May",42,"Everton","3","1","Newcastle United"]
[]
[null,"8 May",41,"Liverpool","4","1","Chelsea"]
[null,"7 May",41,"Blackburn Rovers","0","1","Wigan Athletic"]
[null,"6 May",41,"Manchester United","2","0","Swansea City"]
[null,"6 May",41,"Aston Villa","1","1","Tottenham Hotspur"]
[null,"6 May",41,"Queens Park Rangers","1","0","Stoke City"]
[null,"6 May",41,"Wolverhampton Wanderers","0","0","Everton"]
[null,"6 May",41,"Bolton Wanderers","2","2","West Bromwich Albion"]
[null,"6 May",41,"Fulham","2","1","Sunderland"]
[null,"6 May",41,"Newcastle United","0","2","Manchester City"]
[null,"5 May",41,"Arsenal","3","3","Norwich City"]
[]
[null,"2 May",40,"Bolton Wanderers","1","4","Tottenham Hotspur"]
[null,"2 May",40,"Chelsea","0","2","Newcastle United"]
[null,"1 May",40,"Stoke City","1","1","Everton"]
[null,"1 May",40,"Liverpool","0","1","Fulham"]
[]
[null,"30 Apr",39,"Manchester City","1","0","Manchester United"]
[null,"29 Apr",39,"Tottenham Hotspur","2","0","Blackburn Rovers"]
[null,"29 Apr",39,"Chelsea","6","1","Queens Park Rangers"]
[null,"28 Apr",39,"Norwich City","0","3","Liverpool"]
[null,"28 Apr",39,"Wigan Athletic","4","0","Newcastle United"]
[null,"28 Apr",39,"Stoke City","1","1","Arsenal"]
[null,"28 Apr",39,"Sunderland","2","2","Bolton Wanderers"]
[null,"28 Apr",39,"Swansea City","4","4","Wolverhampton Wanderers"]
[null,"28 Apr",39,"Everton","4","0","Fulham"]
[null,"28 Apr",39,"West Bromwich Albion","0","0","Aston Villa"]
[]
[null,"24 Apr",38,"Aston Villa","1","2","Bolton Wanderers"]
[]
[null,"22 Apr",37,"Wolverhampton Wanderers","0","2","Manchester City"]
[null,"22 Apr",37,"Liverpool","0","1","West Bromwich Albion"]
[null,"22 Apr",37,"Manchester United","4","4","Everton"]
[null,"21 Apr",37,"Queens Park Rangers","1","0","Tottenham Hotspur"]
[null,"21 Apr",37,"Newcastle United","3","0","Stoke City"]
[null,"21 Apr",37,"Aston Villa","0","0","Sunderland"]
[null,"21 Apr",37,"Blackburn Rovers","2","0","Norwich City"]
[null,"21 Apr",37,"Bolton Wanderers","1","1","Swansea City"]
[null,"21 Apr",37,"Fulham","2","1","Wigan Athletic"]
[null,"21 Apr",37,"Arsenal","0","0","Chelsea"]
[]
[null,"16 Apr",36,"Arsenal","1","2","Wigan Athletic"]
[null,"15 Apr",36,"Manchester United","4","0","Aston Villa"]
[null,"14 Apr",36,"Sunderland","0","0","Wolverhampton Wanderers"]
[null,"14 Apr",36,"Swansea City","3","0","Blackburn Rovers"]
[null,"14 Apr",36,"West Bromwich Albion","1","0","Queens Park Rangers"]
[null,"14 Apr",36,"Norwich City","1","6","Manchester City"]
[]
[null,"11 Apr",35,"Queens Park Rangers","3","0","Swansea City"]
[null,"11 Apr",35,"Wigan Athletic","1","0","Manchester United"]
[null,"11 Apr",35,"Wolverhampton Wanderers","0","3","Arsenal"]
[null,"11 Apr",35,"Manchester City","4","0","West Bromwich Albion"]
[null,"10 Apr",35,"Blackburn Rovers","2","3","Liverpool"]
[null,"9 Apr",35,"Fulham","1","1","Chelsea"]
[null,"9 Apr",35,"Aston Villa","1","1","Stoke City"]
[null,"9 Apr",35,"Tottenham Hotspur","1","2","Norwich City"]
[null,"9 Apr",35,"Everton","4","0","Sunderland"]
[null,"9 Apr",35,"Newcastle United","2","0","Bolton Wanderers"]
[]
[null,"8 Apr",34,"Arsenal","1","0","Manchester City"]
[null,"8 Apr",34,"Manchester United","2","0","Queens Park Rangers"]
[null,"7 Apr",34,"Stoke City","2","1","Wolverhampton Wanderers"]
[null,"7 Apr",34,"Norwich City","2","2","Everton"]
[null,"7 Apr",34,"Bolton Wanderers","0","3","Fulham"]
[null,"7 Apr",34,"Chelsea","2","1","Wigan Athletic"]
[null,"7 Apr",34,"West Bromwich Albion","3","0","Blackburn Rovers"]
[null,"7 Apr",34,"Liverpool","1","1","Aston Villa"]
[null,"7 Apr",34,"Sunderland","0","0","Tottenham Hotspur"]
[null,"6 Apr",34,"Swansea City","0","2","Newcastle United"]
[]
[null,"2 Apr",33,"Blackburn Rovers","0","2","Manchester United"]
[null,"1 Apr",33,"Tottenham Hotspur","3","1","Swansea City"]
[null,"1 Apr",33,"Newcastle United","2","0","Liverpool"]
[null,"31 Mar",33,"Wigan Athletic","2","0","Stoke City"]
[null,"31 Mar",33,"Everton","2","0","West Bromwich Albion"]
[null,"31 Mar",33,"Wolverhampton Wanderers","2","3","Bolton Wanderers"]
[null,"31 Mar",33,"Fulham","2","1","Norwich City"]
[null,"31 Mar",33,"Manchester City","3","3","Sunderland"]
[null,"31 Mar",33,"Queens Park Rangers","2","1","Arsenal"]
[null,"31 Mar",33,"Aston Villa","2","4","Chelsea"]
[]
[null,"26 Mar",32,"Manchester United","1","0","Fulham"]
[null,"25 Mar",32,"West Bromwich Albion","1","3","Newcastle United"]
[null,"24 Mar",32,"Stoke City","1","1","Manchester City"]
[null,"24 Mar",32,"Norwich City","2","1","Wolverhampton Wanderers"]
[null,"24 Mar",32,"Arsenal","3","0","Aston Villa"]
[null,"24 Mar",32,"Sunderland","3","1","Queens Park Rangers"]
[null,"24 Mar",32,"Bolton Wanderers","2","1","Blackburn Rovers"]
[null,"24 Mar",32,"Swansea City","0","2","Everton"]
[null,"24 Mar",32,"Liverpool","1","2","Wigan Athletic"]
[null,"24 Mar",32,"Chelsea","0","0","Tottenham Hotspur"]
[]
[null,"21 Mar",31,"Queens Park Rangers","3","2","Liverpool"]
[null,"21 Mar",31,"Everton","0","1","Arsenal"]
[null,"21 Mar",31,"Manchester City","2","1","Chelsea"]
[null,"21 Mar",31,"Tottenham Hotspur","1","1","Stoke City"]
[null,"20 Mar",31,"Blackburn Rovers","2","0","Sunderland"]
[null,"18 Mar",31,"Newcastle United","1","0","Norwich City"]
[null,"18 Mar",31,"Wolverhampton Wanderers","0","5","Manchester United"]
[null,"17 Mar",31,"Fulham","0","3","Swansea City"]
[null,"17 Mar",31,"Wigan Athletic","1","1","West Bromwich Albion"]
[]
[null,"13 Mar",30,"Liverpool","3","0","Everton"]
[]
[null,"12 Mar",29,"Arsenal","2","1","Newcastle United"]
[null,"11 Mar",29,"Norwich City","1","1","Wigan Athletic"]
[null,"11 Mar",29,"Swansea City","1","0","Manchester City"]
[null,"11 Mar",29,"Manchester United","2","0","West Bromwich Albion"]
[null,"10 Mar",29,"Everton","1","0","Tottenham Hotspur"]
[null,"10 Mar",29,"Sunderland","1","0","Liverpool"]
[null,"10 Mar",29,"Aston Villa","1","0","Fulham"]
[null,"10 Mar",29,"Wolverhampton Wanderers","0","2","Blackburn Rovers"]
[null,"10 Mar",29,"Chelsea","1","0","Stoke City"]
[null,"10 Mar",29,"Bolton Wanderers","2","1","Queens Park Rangers"]
[]
[null,"4 Mar",28,"Tottenham Hotspur","1","3","Manchester United"]
[null,"4 Mar",28,"Fulham","5","0","Wolverhampton Wanderers"]
[null,"4 Mar",28,"Newcastle United","1","1","Sunderland"]
[null,"3 Mar",28,"Queens Park Rangers","1","1","Everton"]
[null,"3 Mar",28,"Stoke City","1","0","Norwich City"]
[null,"3 Mar",28,"Blackburn Rovers","1","1","Aston Villa"]
[null,"3 Mar",28,"West Bromwich Albion","1","0","Chelsea"]
[null,"3 Mar",28,"Wigan Athletic","0","2","Swansea City"]
[null,"3 Mar",28,"Manchester City","2","0","Bolton Wanderers"]
[null,"3 Mar",28,"Liverpool","1","2","Arsenal"]
[]
[null,"26 Feb",27,"Stoke City","2","0","Swansea City"]
[null,"26 Feb",27,"Norwich City","1","2","Manchester United"]
[null,"26 Feb",27,"Arsenal","5","2","Tottenham Hotspur"]
[null,"25 Feb",27,"Manchester City","3","0","Blackburn Rovers"]
[null,"25 Feb",27,"Chelsea","3","0","Bolton Wanderers"]
[null,"25 Feb",27,"West Bromwich Albion","4","0","Sunderland"]
[null,"25 Feb",27,"Wigan Athletic","0","0","Aston Villa"]
[null,"25 Feb",27,"Newcastle United","2","2","Wolverhampton Wanderers"]
[null,"25 Feb",27,"Queens Park Rangers","0","1","Fulham"]
[]
[null,"12 Feb",26,"Aston Villa","0","1","Manchester City"]
[null,"12 Feb",26,"Wolverhampton Wanderers","1","5","West Bromwich Albion"]
[null,"11 Feb",26,"Tottenham Hotspur","5","0","Newcastle United"]
[null,"11 Feb",26,"Sunderland","1","2","Arsenal"]
[null,"11 Feb",26,"Swansea City","2","3","Norwich City"]
[null,"11 Feb",26,"Blackburn Rovers","3","2","Queens Park Rangers"]
[null,"11 Feb",26,"Bolton Wanderers","1","2","Wigan Athletic"]
[null,"11 Feb",26,"Everton","2","0","Chelsea"]
[null,"11 Feb",26,"Fulham","2","1","Stoke City"]
[null,"11 Feb",26,"Manchester United","2","1","Liverpool"]
[]
[null,"6 Feb",25,"Liverpool","0","0","Tottenham Hotspur"]
[null,"5 Feb",25,"Chelsea","3","3","Manchester United"]
[null,"5 Feb",25,"Newcastle United","2","1","Aston Villa"]
[null,"4 Feb",25,"Manchester City","3","0","Fulham"]
[null,"4 Feb",25,"Wigan Athletic","1","1","Everton"]
[null,"4 Feb",25,"Norwich City","2","0","Bolton Wanderers"]
[null,"4 Feb",25,"Queens Park Rangers","1","2","Wolverhampton Wanderers"]
[null,"4 Feb",25,"Stoke City","0","1","Sunderland"]
[null,"4 Feb",25,"West Bromwich Albion","1","2","Swansea City"]
[null,"4 Feb",25,"Arsenal","7","1","Blackburn Rovers"]
[]
[null,"1 Feb",24,"Bolton Wanderers","0","0","Arsenal"]
[null,"1 Feb",24,"Blackburn Rovers","0","2","Newcastle United"]
[null,"1 Feb",24,"Sunderland","3","0","Norwich City"]
[null,"1 Feb",24,"Fulham","1","1","West Bromwich Albion"]
[null,"1 Feb",24,"Aston Villa","2","2","Queens Park Rangers"]
[null,"31 Jan",24,"Manchester United","2","0","Stoke City"]
[null,"31 Jan",24,"Everton","1","0","Manchester City"]
[null,"31 Jan",24,"Swansea City","1","1","Chelsea"]
[null,"31 Jan",24,"Tottenham Hotspur","3","1","Wigan Athletic"]
[null,"31 Jan",24,"Wolverhampton Wanderers","0","3","Liverpool"]
[]
[null,"22 Jan",23,"Arsenal","1","2","Manchester United"]
[null,"22 Jan",23,"Manchester City","3","2","Tottenham Hotspur"]
[null,"21 Jan",23,"Bolton Wanderers","3","1","Liverpool"]
[null,"21 Jan",23,"Fulham","5","2","Newcastle United"]
[null,"21 Jan",23,"Queens Park Rangers","3","1","Wigan Athletic"]
[null,"21 Jan",23,"Stoke City","1","2","West Bromwich Albion"]
[null,"21 Jan",23,"Sunderland","2","0","Swansea City"]
[null,"21 Jan",23,"Everton","1","1","Blackburn Rovers"]
[null,"21 Jan",23,"Wolverhampton Wanderers","2","3","Aston Villa"]
[null,"21 Jan",23,"Norwich City","0","0","Chelsea"]
[]
[null,"16 Jan",22,"Wigan Athletic","0","1","Manchester City"]
[null,"15 Jan",22,"Swansea City","3","2","Arsenal"]
[null,"15 Jan",22,"Newcastle United","1","0","Queens Park Rangers"]
[null,"14 Jan",22,"Tottenham Hotspur","1","1","Wolverhampton Wanderers"]
[null,"14 Jan",22,"Blackburn Rovers","3","1","Fulham"]
[null,"14 Jan",22,"West Bromwich Albion","1","2","Norwich City"]
[null,"14 Jan",22,"Chelsea","1","0","Sunderland"]
[null,"14 Jan",22,"Liverpool","0","0","Stoke City"]
[null,"14 Jan",22,"Manchester United","3","0","Bolton Wanderers"]
[null,"14 Jan",22,"Aston Villa","1","1","Everton"]
[]
[null,"11 Jan",21,"Tottenham Hotspur","2","0","Everton"]
[]
[null,"4 Jan",20,"Newcastle United","3","0","Manchester United"]
[null,"4 Jan",20,"Everton","1","2","Bolton Wanderers"]
[null,"3 Jan",20,"Manchester City","3","0","Liverpool"]
[null,"3 Jan",20,"Tottenham Hotspur","1","0","West Bromwich Albion"]
[null,"3 Jan",20,"Wigan Athletic","1","4","Sunderland"]
[null,"2 Jan",20,"Fulham","2","1","Arsenal"]
[null,"2 Jan",20,"Queens Park Rangers","1","2","Norwich City"]
[null,"2 Jan",20,"Aston Villa","0","2","Swansea City"]
[null,"2 Jan",20,"Blackburn Rovers","1","2","Stoke City"]
[null,"2 Jan",20,"Wolverhampton Wanderers","1","2","Chelsea"]
[]
[null,"1 Jan",19,"Sunderland","1","0","Manchester City"]
[null,"1 Jan",19,"West Bromwich Albion","0","1","Everton"]
[null,"31 Dec",19,"Swansea City","1","1","Tottenham Hotspur"]
[null,"31 Dec",19,"Chelsea","1","3","Aston Villa"]
[null,"31 Dec",19,"Norwich City","1","1","Fulham"]
[null,"31 Dec",19,"Stoke City","2","2","Wigan Athletic"]
[null,"31 Dec",19,"Arsenal","1","0","Queens Park Rangers"]
[null,"31 Dec",19,"Bolton Wanderers","1","1","Wolverhampton Wanderers"]
[null,"31 Dec",19,"Manchester United","2","3","Blackburn Rovers"]
[null,"30 Dec",19,"Liverpool","3","1","Newcastle United"]
[]
[null,"27 Dec",18,"Norwich City","0","2","Tottenham Hotspur"]
[null,"27 Dec",18,"Swansea City","1","1","Queens Park Rangers"]
[null,"27 Dec",18,"Arsenal","1","1","Wolverhampton Wanderers"]
[null,"26 Dec",18,"Stoke City","0","0","Aston Villa"]
[null,"26 Dec",18,"Sunderland","1","1","Everton"]
[null,"26 Dec",18,"Bolton Wanderers","0","2","Newcastle United"]
[null,"26 Dec",18,"West Bromwich Albion","0","0","Manchester City"]
[null,"26 Dec",18,"Liverpool","1","1","Blackburn Rovers"]
[null,"26 Dec",18,"Manchester United","5","0","Wigan Athletic"]
[null,"26 Dec",18,"Chelsea","1","1","Fulham"]
[]
[null,"22 Dec",17,"Tottenham Hotspur","1","1","Chelsea"]
[null,"21 Dec",17,"Queens Park Rangers","2","3","Sunderland"]
[null,"21 Dec",17,"Everton","1","0","Swansea City"]
[null,"21 Dec",17,"Fulham","0","5","Manchester United"]
[null,"21 Dec",17,"Wigan Athletic","0","0","Liverpool"]
[null,"21 Dec",17,"Newcastle United","2","3","West Bromwich Albion"]
[null,"21 Dec",17,"Aston Villa","1","2","Arsenal"]
[null,"21 Dec",17,"Manchester City","3","0","Stoke City"]
[null,"20 Dec",17,"Blackburn Rovers","1","2","Bolton Wanderers"]
[null,"20 Dec",17,"Wolverhampton Wanderers","2","2","Norwich City"]
[]
[null,"18 Dec",16,"Manchester City","1","0","Arsenal"]
[null,"18 Dec",16,"Tottenham Hotspur","1","0","Sunderland"]
[null,"18 Dec",16,"Aston Villa","0","2","Liverpool"]
[null,"18 Dec",16,"Queens Park Rangers","0","2","Manchester United"]
[null,"17 Dec",16,"Wigan Athletic","1","1","Chelsea"]
[null,"17 Dec",16,"Blackburn Rovers","1","2","West Bromwich Albion"]
[null,"17 Dec",16,"Everton","1","1","Norwich City"]
[null,"17 Dec",16,"Wolverhampton Wanderers","1","2","Stoke City"]
[null,"17 Dec",16,"Fulham","2","0","Bolton Wanderers"]
[null,"17 Dec",16,"Newcastle United","0","0","Swansea City"]
[]
[null,"12 Dec",15,"Chelsea","2","1","Manchester City"]
[null,"11 Dec",15,"Stoke City","2","1","Tottenham Hotspur"]
[null,"11 Dec",15,"Sunderland","2","1","Blackburn Rovers"]
[null,"10 Dec",15,"Norwich City","4","2","Newcastle United"]
[null,"10 Dec",15,"Arsenal","1","0","Everton"]
[null,"10 Dec",15,"Bolton Wanderers","1","2","Aston Villa"]
[null,"10 Dec",15,"Swansea City","2","0","Fulham"]
[null,"10 Dec",15,"West Bromwich Albion","1","2","Wigan Athletic"]
[null,"10 Dec",15,"Liverpool","1","0","Queens Park Rangers"]
[null,"10 Dec",15,"Manchester United","4","1","Wolverhampton Wanderers"]
[]
[null,"5 Dec",14,"Fulham","1","0","Liverpool"]
[null,"4 Dec",14,"Wolverhampton Wanderers","2","1","Sunderland"]
[null,"4 Dec",14,"Everton","0","1","Stoke City"]
[null,"3 Dec",14,"Aston Villa","0","1","Manchester United"]
[null,"3 Dec",14,"Wigan Athletic","0","4","Arsenal"]
[null,"3 Dec",14,"Manchester City","5","1","Norwich City"]
[null,"3 Dec",14,"Queens Park Rangers","1","1","West Bromwich Albion"]
[null,"3 Dec",14,"Tottenham Hotspur","3","0","Bolton Wanderers"]
[null,"3 Dec",14,"Blackburn Rovers","4","2","Swansea City"]
[null,"3 Dec",14,"Newcastle United","0","3","Chelsea"]
[]
[null,"27 Nov",13,"Liverpool","1","1","Manchester City"]
[null,"27 Nov",13,"Swansea City","0","0","Aston Villa"]
[null,"26 Nov",13,"Arsenal","1","1","Fulham"]
[null,"26 Nov",13,"Norwich City","2","1","Queens Park Rangers"]
[null,"26 Nov",13,"Sunderland","1","2","Wigan Athletic"]
[null,"26 Nov",13,"Bolton Wanderers","0","2","Everton"]
[null,"26 Nov",13,"Chelsea","3","0","Wolverhampton Wanderers"]
[null,"26 Nov",13,"West Bromwich Albion","1","3","Tottenham Hotspur"]
[null,"26 Nov",13,"Manchester United","1","1","Newcastle United"]
[null,"26 Nov",13,"Stoke City","3","1","Blackburn Rovers"]
[]
[null,"21 Nov",12,"Tottenham Hotspur","2","0","Aston Villa"]
[null,"20 Nov",12,"Chelsea","1","2","Liverpool"]
[null,"19 Nov",12,"Swansea City","0","1","Manchester United"]
[null,"19 Nov",12,"Wigan Athletic","3","3","Blackburn Rovers"]
[null,"19 Nov",12,"Stoke City","2","3","Queens Park Rangers"]
[null,"19 Nov",12,"Sunderland","0","0","Fulham"]
[null,"19 Nov",12,"Everton","2","1","Wolverhampton Wanderers"]
[null,"19 Nov",12,"West Bromwich Albion","2","1","Bolton Wanderers"]
[null,"19 Nov",12,"Manchester City","3","1","Newcastle United"]
[null,"19 Nov",12,"Norwich City","1","2","Arsenal"]
[]
[null,"6 Nov",11,"Fulham","1","3","Tottenham Hotspur"]
[null,"6 Nov",11,"Bolton Wanderers","5","0","Stoke City"]
[null,"6 Nov",11,"Wolverhampton Wanderers","3","1","Wigan Athletic"]
[null,"5 Nov",11,"Queens Park Rangers","2","3","Manchester City"]
[null,"5 Nov",11,"Manchester United","1","0","Sunderland"]
[null,"5 Nov",11,"Arsenal","3","0","West Bromwich Albion"]
[null,"5 Nov",11,"Aston Villa","3","2","Norwich City"]
[null,"5 Nov",11,"Blackburn Rovers","0","1","Chelsea"]
[null,"5 Nov",11,"Liverpool","0","0","Swansea City"]
[null,"5 Nov",11,"Newcastle United","2","1","Everton"]
[]
[null,"31 Oct",10,"Stoke City","1","3","Newcastle United"]
[null,"30 Oct",10,"Tottenham Hotspur","3","1","Queens Park Rangers"]
[null,"29 Oct",10,"West Bromwich Albion","0","2","Liverpool"]
[null,"29 Oct",10,"Sunderland","2","2","Aston Villa"]
[null,"29 Oct",10,"Swansea City","3","1","Bolton Wanderers"]
[null,"29 Oct",10,"Manchester City","3","1","Wolverhampton Wanderers"]
[null,"29 Oct",10,"Wigan Athletic","0","2","Fulham"]
[null,"29 Oct",10,"Norwich City","3","3","Blackburn Rovers"]
[null,"29 Oct",10,"Chelsea","3","5","Arsenal"]
[null,"29 Oct",10,"Everton","0","1","Manchester United"]
[]
[null,"23 Oct",9,"Queens Park Rangers","1","0","Chelsea"]
[null,"23 Oct",9,"Blackburn Rovers","1","2","Tottenham Hotspur"]
[null,"23 Oct",9,"Arsenal","3","1","Stoke City"]
[null,"23 Oct",9,"Fulham","1","3","Everton"]
[null,"23 Oct",9,"Manchester United","1","6","Manchester City"]
[null,"22 Oct",9,"Liverpool","1","1","Norwich City"]
[null,"22 Oct",9,"Newcastle United","1","0","Wigan Athletic"]
[null,"22 Oct",9,"Bolton Wanderers","0","2","Sunderland"]
[null,"22 Oct",9,"Aston Villa","1","2","West Bromwich Albion"]
[null,"22 Oct",9,"Wolverhampton Wanderers","2","2","Swansea City"]
[]
[null,"16 Oct",8,"Newcastle United","2","2","Tottenham Hotspur"]
[null,"16 Oct",8,"Arsenal","2","1","Sunderland"]
[null,"16 Oct",8,"West Bromwich Albion","2","0","Wolverhampton Wanderers"]
[null,"15 Oct",8,"Chelsea","3","1","Everton"]
[null,"15 Oct",8,"Stoke City","2","0","Fulham"]
[null,"15 Oct",8,"Wigan Athletic","1","3","Bolton Wanderers"]
[null,"15 Oct",8,"Manchester City","4","1","Aston Villa"]
[null,"15 Oct",8,"Norwich City","3","1","Swansea City"]
[null,"15 Oct",8,"Queens Park Rangers","1","1","Blackburn Rovers"]
[null,"15 Oct",8,"Liverpool","1","1","Manchester United"]
[]
[null,"2 Oct",7,"Tottenham Hotspur","2","1","Arsenal"]
[null,"2 Oct",7,"Fulham","6","0","Queens Park Rangers"]
[null,"2 Oct",7,"Swansea City","2","0","Stoke City"]
[null,"2 Oct",7,"Bolton Wanderers","1","5","Chelsea"]
[null,"1 Oct",7,"Manchester United","2","0","Norwich City"]
[null,"1 Oct",7,"Sunderland","2","2","West Bromwich Albion"]
[null,"1 Oct",7,"Aston Villa","2","0","Wigan Athletic"]
[null,"1 Oct",7,"Blackburn Rovers","0","4","Manchester City"]
[null,"1 Oct",7,"Wolverhampton Wanderers","1","2","Newcastle United"]
[null,"1 Oct",7,"Everton","0","2","Liverpool"]
[]
[null,"26 Sep",6,"Norwich City","2","1","Sunderland"]
[null,"25 Sep",6,"Queens Park Rangers","1","1","Aston Villa"]
[null,"24 Sep",6,"Stoke City","1","1","Manchester United"]
[null,"24 Sep",6,"Chelsea","4","1","Swansea City"]
[null,"24 Sep",6,"West Bromwich Albion","0","0","Fulham"]
[null,"24 Sep",6,"Liverpool","2","1","Wolverhampton Wanderers"]
[null,"24 Sep",6,"Wigan Athletic","1","2","Tottenham Hotspur"]
[null,"24 Sep",6,"Newcastle United","3","1","Blackburn Rovers"]
[null,"24 Sep",6,"Arsenal","3","0","Bolton Wanderers"]
[null,"24 Sep",6,"Manchester City","2","0","Everton"]
[]
[null,"18 Sep",5,"Manchester United","3","1","Chelsea"]
[null,"18 Sep",5,"Sunderland","4","0","Stoke City"]
[null,"18 Sep",5,"Fulham","2","2","Manchester City"]
[null,"18 Sep",5,"Tottenham Hotspur","4","0","Liverpool"]
[null,"17 Sep",5,"Swansea City","3","0","West Bromwich Albion"]
[null,"17 Sep",5,"Bolton Wanderers","1","2","Norwich City"]
[null,"17 Sep",5,"Wolverhampton Wanderers","0","3","Queens Park Rangers"]
[null,"17 Sep",5,"Aston Villa","1","1","Newcastle United"]
[null,"17 Sep",5,"Everton","3","1","Wigan Athletic"]
[null,"17 Sep",5,"Blackburn Rovers","4","3","Arsenal"]
[]
[null,"12 Sep",4,"Queens Park Rangers","0","0","Newcastle United"]
[null,"11 Sep",4,"Fulham","1","1","Blackburn Rovers"]
[null,"11 Sep",4,"Norwich City","0","1","West Bromwich Albion"]
[null,"10 Sep",4,"Bolton Wanderers","0","5","Manchester United"]
[null,"10 Sep",4,"Arsenal","1","0","Swansea City"]
[null,"10 Sep",4,"Stoke City","1","0","Liverpool"]
[null,"10 Sep",4,"Sunderland","1","2","Chelsea"]
[null,"10 Sep",4,"Everton","2","2","Aston Villa"]
[null,"10 Sep",4,"Wolverhampton Wanderers","0","2","Tottenham Hotspur"]
[null,"10 Sep",4,"Manchester City","3","0","Wigan Athletic"]
[]
[null,"28 Aug",3,"Manchester United","8","2","Arsenal"]
[null,"28 Aug",3,"West Bromwich Albion","0","1","Stoke City"]
[null,"28 Aug",3,"Tottenham Hotspur","1","5","Manchester City"]
[null,"28 Aug",3,"Newcastle United","2","1","Fulham"]
[null,"27 Aug",3,"Liverpool","3","1","Bolton Wanderers"]
[null,"27 Aug",3,"Swansea City","0","0","Sunderland"]
[null,"27 Aug",3,"Blackburn Rovers","0","1","Everton"]
[null,"27 Aug",3,"Chelsea","3","1","Norwich City"]
[null,"27 Aug",3,"Wigan Athletic","2","0","Queens Park Rangers"]
[null,"27 Aug",3,"Aston Villa","0","0","Wolverhampton Wanderers"]
[]
[null,"22 Aug",2,"Manchester United","3","0","Tottenham Hotspur"]
[null,"21 Aug",2,"Bolton Wanderers","2","3","Manchester City"]
[null,"21 Aug",2,"Wolverhampton Wanderers","2","0","Fulham"]
[null,"21 Aug",2,"Norwich City","1","1","Stoke City"]
[null,"20 Aug",2,"Chelsea","2","1","West Bromwich Albion"]
[null,"20 Aug",2,"Aston Villa","3","1","Blackburn Rovers"]
[null,"20 Aug",2,"Swansea City","0","0","Wigan Athletic"]
[null,"20 Aug",2,"Everton","0","1","Queens Park Rangers"]
[null,"20 Aug",2,"Arsenal","0","2","Liverpool"]
[null,"20 Aug",2,"Sunderland","0","1","Newcastle United"]
[]
[null,"15 Aug",1,"Manchester City","4","0","Swansea City"]
[null,"14 Aug",1,"West Bromwich Albion","1","2","Manchester United"]
[null,"14 Aug",1,"Stoke City","0","0","Chelsea"]
[null,"13 Aug",1,"Newcastle United","0","0","Arsenal"]
[null,"13 Aug",1,"Queens Park Rangers","0","4","Bolton Wanderers"]
[null,"13 Aug",1,"Blackburn Rovers","1","2","Wolverhampton Wanderers"]
[null,"13 Aug",1,"Fulham","0","0","Aston Villa"]
[null,"13 Aug",1,"Liverpool","1","1","Sunderland"]
[null,"13 Aug",1,"Wigan Athletic","1","1","Norwich City"]